[Event "WCCC U10 2019"]
[Site "Weifang"]
[Date "2019.09.01"]
[Round "11.2"]
[White "Wei, Jianzhou"]
[Black "Meng, Yihan"]
[Result "0-1"]
[ECO "D85"]
[WhiteElo "1656"]
[BlackElo "1793"]
[Annotator "NA RC"]
[PlyCount "104"]
[EventDate "2019.08.21"]
[EventType "swiss"]
[EventCountry "CHN"]
[SourceTitle "playchess.com"]
[Source "ChessBase"]
[SourceQuality "1"]
[TimeControl "40/5400+30:1800+30"]

1. d4 {[%emt 0:00:00]} Nf6 {[%emt 0:00:00]} 2. c4 {[%emt 0:00:00]} g6 {[%emt 0:00:15]} 3. Nc3 {[%emt 0:00:00]} d5 {[%emt 0:00:33]} 4. cxd5 {[%emt 0:00:00]} Nxd5 {[%emt 0:00:13]} 5. e4 {[%emt 0:00:00]} Nxc3 {[%emt 0:00:34]} 6. bxc3 {[%emt 0:00:00]} Bg7 {[%emt 0:00:17]} 7. Nf3 {[%emt 0:00:00]} c5 {[%emt 0:00:34]} 8. Rb1 {[%emt 0:00:00]} O-O {[%emt 0:00:40]} 9. Be2 {[%emt 0:00:00]} b6 {[%emt 0:00:35]} 10. O-O {[%emt 0:00:42]} e6 {[%emt 0:01:05]} 11. Ba3 {[%emt 0:01:34]} Qc7 {[%emt 0:05:16]} 12. Qd3 {[%emt 0:05:13]} Rd8 {[%emt 0:01:30]} 13. Rfd1 {[%emt 0:02:16]} Bb7 {[%emt 0:09:23]} 14. Qe3 {[%emt 0:00:40]} Nd7 {[%emt 0:01:16]} 15. Bd3 {[%emt 0:05:11]} Nf6 {[%emt 0:08:48]} 16. dxc5 {[%emt 0:03:42]} bxc5 {[%emt 0:01:21]} 17. Bc2 {[%emt 0:07:03]} Rxd1+ {[%emt 0:10:20]} 18. Rxd1 {[%emt 0:00:06]} h6 {[%emt 0:01:41]} 19. h3 {[%emt 0:02:12]} Rc8 {[%emt 0:01:55]} 20. Nd2 {[%emt 0:09:00]} c4 {[%emt 0:08:22]} 21. Nb1 {[%emt 0:08:00]} a5 {[%emt 0:02:00]} 22. Qe2 {[%emt 0:08:41]} Ne8 {[%emt 0:03:48]} 23. Ba4 {[%emt 0:00:45]} Nf6 {[%emt 0:03:54]} 24. Bc2 {[%emt 0:07:20]} Ne8 {[%emt 0:02:31]} 25. Ba4 {[%emt 0:00:08]} Nf6 {[%emt 0:00:48]} 26. Bc2 {[%emt 0:01:47]} Nd7 {[%emt 0:09:36]} 27. Ba4 {[%emt 0:07:25]} Ne5 {[%emt 0:00:25]} 28. Bd6 {[%emt 0:01:59]} Qb6 {[%emt 0:00:03]} 29. Bc2 {[%emt 0:04:03]} Rd8 {[%emt 0:01:11]} 30. Be7 {[%emt 0:02:15]} Rxd1+ {[%emt 0:00:11]} 31. Qxd1 {[%emt 0:00:10]} Kh7 {[%emt 0:03:45]} 32. Bd8 {[%emt 0:00:38]} Qb2 {[%emt 0:03:41]} 33. a4 {[%emt 0:00:53]} Nc6 {[%emt 0:00:09]} 34. Bc7 {[%emt 0:03:40]} Bxc3 {[%emt 0:00:49]} 35. Bd6 {[%emt 0:05:03]} Bg7 {[%emt 0:01:25]} 36. Ba3 {[%emt 0:01:28]} Qd4 {[%emt 0:00:07]} 37. Qe1 {[%emt 0:00:30]} c3 {[%emt 0:00:41]} 38. Qe2 {[%emt 0:00:18]} Nb4 {[%emt 0:00:49]} 39. Bxb4 {[%emt 0:00:30]} Qxb4 {[%emt 0:00:02]} 40. Qd3 {[%emt 0:00:36]} Qb2 {[%emt 0:00:41]} 41. Qd1 {[%emt 0:30:49]} f5 {[%emt 0:31:36]} 42. f3 {[%emt 0:00:46]} Ba6 {[%emt 0:06:30]} 43. exf5 {[%emt 0:00:47]} exf5 {[%emt 0:00:01]} 44. g4 {[%emt 0:00:15]} Qb6+ {[%emt 0:01:00]} 45. Kg2 {[%emt 0:00:12]} fxg4 {[%emt 0:02:35]} 46. hxg4 {[%emt 0:00:04]} Qe3 {[%emt 0:00:31]} 47. Be4 {[%emt 0:00:37]} Bd4 {[%emt 0:01:19]} 48. Kh1 {[%emt 0:01:49]} Be2 {[%emt 0:00:35]} 49. Qe1 {[%emt 0:00:50]} Bxf3+ {[%emt 0:00:10]} 50. Bxf3 {[%emt 0:00:42]} Qxe1+ {[%emt 0:00:02]} 51. Kg2 {[%emt 0:00:05]} Qxb1 {[%emt 0:00:06]} 52. Be2 {[%emt 0:00:08]} c2 {[%emt 0:00:07]} 0-1

[Event "WCCC U10 2019"]
[Site "Weifang"]
[Date "2019.09.01"]
[Round "11.3"]
[White "Bharadia Yash"]
[Black "Ilamparthi A R"]
[Result "1/2-1/2"]
[ECO "B08"]
[WhiteElo "1963"]
[BlackElo "1984"]
[Annotator "NA RC"]
[PlyCount "96"]
[EventDate "2019.08.21"]
[EventType "swiss"]
[EventCountry "CHN"]
[SourceTitle "playchess.com"]
[Source "ChessBase"]
[SourceQuality "1"]
[TimeControl "40/5400+30:1800+30"]

{[%evp 13,91,48,35,33,32767,28,32767,26,45,39,53,0,53,32767,2,6,0,4,0,0,5,0,0,-4,32767,0,32767,0,0,0,3,0,10,-6,0,-18,-12,-37,-27,-31,-16,-35,-36,-38,-27,-43,-22,32767,32767,32767,32767,32767,32767,32767,32767,-21,0,-21,0,0,29,12,28,0,62,19,14,0,0,0,0,0,0,0,0,32767,32767,0,0,0]} 1. e4 {[%emt 0:00:00]} d6 {[%emt 0:00:00]} 2. d4 {[%emt 0:00:00]} Nf6 {[%emt 0:00:00]} 3. Nc3 {[%emt 0:00:00]} g6 {[%emt 0:00:05]} 4. Nf3 {[%emt 0:00:15]} Bg7 {[%emt 0:00:11]} 5. Be2 {[%emt 0:01:36]} O-O {[%emt 0:00:09]} 6. O-O {[%emt 0:00:17]} Nbd7 {[%emt 0:01:22]} 7. e5 {[%emt 0:16:37]} Ne8 {[%emt 0:00:16]} 8. Bf4 {[%emt 0:08:40]} c5 {[%emt 0:10:51]} 9. dxc5 {[%emt 0:07:31] B08: Pirc Defence: Classical System} Nxc5 {[%emt 0:00:07]} 10. Qd2 {[%emt 0:09:39]} Be6 {[%emt 0:10:27]} (10... Bg4 11. Rad1 Ne6 12. Bh6 dxe5 13. Qxd8 Rxd8 14. Rxd8 Nxd8 15. Bxg7 Nxg7 16. Nxe5 Bxe2 17. Nxe2 {0-1 (71) Rigo,Z (2397)-Mester,G (2442) Hungary 2010}) 11. Qe3 $146 {[%emt 0:08:07]} ({Predecessor:} 11. Rfd1 Qb6 12. Rab1 dxe5 13. Bxe5 Nf6 14. Bd4 Qc6 15. Qe3 Ncd7 16. Bb5 Qc8 17. Bxd7 Bxd7 18. Qxe7 {0-1 (59) Antonyan,S (1648)-Dilanyan,G (2282) Yerevan 2017}) 11... Qb6 {[%emt 0:02:16]} 12. Rab1 {[%emt 0:01:30]} (12. Bg5 $14) 12... Rc8 {[%emt 0:07:17]} 13. Rfd1 {[%emt 0:05:45]} dxe5 {[%emt 0:03:17]} 14. Bxe5 {[%emt 0:01:00]} Bxe5 {[%emt 0:00:32]} 15. Qxe5 {[%emt 0:11:30]} Nf6 {[%emt 0:00:11]} 16. Nd4 {[%emt 0:00:57]} Rfd8 {[%emt 0:00:33]} 17. Bf3 {[%emt 0:01:22]} Rd6 {[%emt 0:08:37]} 18. Nb3 {[%emt 0:09:02]} Nxb3 {[%emt 0:02:46]} 19. axb3 {[%emt 0:03:07]} Rcd8 {[%emt 0:01:09]} 20. Rxd6 {[%emt 0:04:09]} Rxd6 {[%emt 0:00:02]} 21. Rd1 {[%emt 0:00:30]} Rxd1+ {[%emt 0:00:07]} 22. Nxd1 {[%emt 0:00:21]} Qd8 {[%emt 0:00:30]} 23. Qe2 {[%emt 0:00:39]} b6 {[%emt 0:00:21]} 24. Nc3 {[%emt 0:01:33]} Kf8 {[%emt 0:01:02]} 25. Be4 {[%emt 0:04:15]} Nxe4 {[%emt 0:00:45]} 26. Nxe4 {[%emt 0:00:17]} Qd4 {[%emt 0:01:13]} 27. Nc3 {[%emt 0:01:10]} Bf5 {[%emt 0:00:41]} 28. g3 {[%emt 0:02:01]} Bh3 {[%emt 0:01:45]} 29. Qe3 {[%emt 0:00:51]} Qxe3 {[%emt 0:00:14]} 30. fxe3 {[%emt 0:00:10]} e5 {[%emt 0:00:08]} 31. Kf2 {[%emt 0:00:47]} Bd7 {[%emt 0:00:27]} 32. e4 {[%emt 0:00:44]} Ke7 {[%emt 0:00:15]} 33. Ke3 {[%emt 0:00:34]} Bc6 {[%emt 0:00:42]} 34. b4 {[%emt 0:00:41]} Ke6 {[%emt 0:00:25]} 35. Ne2 {[%emt 0:00:36]} Kf6 {[%emt 0:00:43]} 36. c4 {[%emt 0:00:34]} Kg5 {[%emt 0:00:30]} 37. b5 {[%emt 0:00:32]} Bd7 {[%emt 0:01:27]} 38. b4 {[%emt 0:00:49]} Kg4 {[%emt 0:01:04]} (38... Be6 $11 39. c5 Bc4) 39. Kf2 {[%emt 0:00:34]} f5 {[%emt 0:00:58]} 40. exf5 {[%emt 0:00:35]} gxf5 {[%emt 0:01:01]} 41. Nc3 {[%emt 0:30:14]} Kg5 {[%emt 0:30:26]} 42. c5 {[%emt 0:00:00]} Kf6 {[%emt 0:00:00]} 43. Ke3 {[%emt 0:00:00]} Ke6 {[%emt 0:00:00]} 44. Kd3 {[%emt 0:00:00]} h5 {[%emt 0:00:00]} 45. c6 {[%emt 0:00:00]} Bc8 {[%emt 0:00:00]} 46. Ke3 $11 {[%emt 0:00:00]} Kd6 {[%emt 0:00:00]} 47. Kd3 {[%emt 0:00:00]} Be6 {[%emt 0:00:16]} 48. Ke3 {[%emt 0:00:04]} a6 {[%emt 0:00:07] Ke4} 1/2-1/2

[Event "WCCC U10 2019"]
[Site "Weifang"]
[Date "2019.09.01"]
[Round "11.4"]
[White "Sodbilegt, Naranbold"]
[Black "Tenuunbold, Battulga"]
[Result "0-1"]
[ECO "D46"]
[WhiteElo "1458"]
[BlackElo "1754"]
[Annotator "NA RC"]
[PlyCount "76"]
[EventDate "2019.08.21"]
[EventType "swiss"]
[EventCountry "CHN"]
[SourceTitle "playchess.com"]
[Source "ChessBase"]
[SourceQuality "1"]
[TimeControl "40/5400+30:1800+30"]

1. c4 {[%emt 0:00:00]} e6 {[%emt 0:01:40]} 2. d4 {[%emt 0:00:13]} d5 {[%emt 0:00:05]} 3. Nc3 {[%emt 0:00:42]} c6 {[%emt 0:00:25]} 4. Nf3 {[%emt 0:00:23]} Nf6 {[%emt 0:00:19]} 5. e3 {[%emt 0:00:45]} Nbd7 {[%emt 0:02:23]} 6. Bd3 {[%emt 0:01:25]} dxc4 {[%emt 0:01:56]} 7. Bxc4 {[%emt 0:00:49]} b5 {[%emt 0:00:22]} 8. Bd3 {[%emt 0:00:29]} Bd6 {[%emt 0:00:36]} 9. O-O {[%emt 0:02:49]} O-O {[%emt 0:00:52]} 10. Qc2 {[%emt 0:03:14]} Bb7 {[%emt 0:01:54]} 11. b3 {[%emt 0:07:29]} a6 {[%emt 0:02:37]} 12. e4 {[%emt 0:06:05]} e5 {[%emt 0:00:54]} 13. dxe5 {[%emt 0:04:41]} Nxe5 {[%emt 0:00:52]} 14. Nxe5 {[%emt 0:07:40]} Bxe5 {[%emt 0:00:08]} 15. Bb2 {[%emt 0:02:32]} Qc7 {[%emt 0:04:41]} 16. h3 {[%emt 0:02:03]} Rfd8 {[%emt 0:01:15]} 17. Rfd1 {[%emt 0:09:56]} c5 {[%emt 0:05:24]} 18. f3 {[%emt 0:07:16]} c4 {[%emt 0:12:27]} 19. bxc4 {[%emt 0:01:38]} bxc4 {[%emt 0:00:05]} 20. Bf1 {[%emt 0:01:05]} Qb6+ {[%emt 0:00:12]} 21. Kh1 {[%emt 0:02:19]} Nh5 {[%emt 0:01:34]} 22. g4 {[%emt 0:03:43]} Ng3+ {[%emt 0:29:36]} 23. Kg2 {[%emt 0:04:31]} Nxf1 {[%emt 0:02:36]} 24. Kxf1 {[%emt 0:02:02]} Qf6 {[%emt 0:02:31]} 25. Kg2 {[%emt 0:06:04]} Qf4 {[%emt 0:01:01]} 26. Qf2 {[%emt 0:00:35]} Qh2+ {[%emt 0:02:03]} 27. Kf1 {[%emt 0:00:03]} Qxh3+ {[%emt 0:00:13]} 28. Ke2 {[%emt 0:01:39]} Bg3 {[%emt 0:03:25]} 29. Qg1 {[%emt 0:02:04]} Bf4 {[%emt 0:03:04]} 30. Qf2 {[%emt 0:03:27]} Rd3 {[%emt 0:02:07]} 31. Rxd3 {[%emt 0:02:54]} cxd3+ {[%emt 0:00:05]} 32. Kxd3 {[%emt 0:00:16]} Rd8+ {[%emt 0:01:48]} 33. Nd5 {[%emt 0:01:25]} Bxd5 {[%emt 0:06:36]} 34. exd5 {[%emt 0:00:14]} Rxd5+ {[%emt 0:00:30]} 35. Ke4 {[%emt 0:02:12]} Rd2 {[%emt 0:00:11]} 36. Qc5 {[%emt 0:04:06]} Re2+ {[%emt 0:01:49]} 37. Kxf4 {[%emt 0:03:54]} Qh2+ {[%emt 0:00:05]} 38. Kf5 {[%emt 0:01:14]} g6+ {[%emt 0:00:15]} 0-1

[Event "WCCC U10 2019"]
[Site "Weifang"]
[Date "2019.09.01"]
[Round "11.5"]
[White "Mamedov, Edgar"]
[Black "Efimov, Leonid"]
[Result "1-0"]
[ECO "D36"]
[WhiteElo "1714"]
[BlackElo "1773"]
[Annotator "NA RC"]
[PlyCount "113"]
[EventDate "2019.08.21"]
[EventType "swiss"]
[EventCountry "CHN"]
[SourceTitle "playchess.com"]
[Source "ChessBase"]
[SourceQuality "1"]
[TimeControl "40/5400+30:1800+30"]

1. d4 {[%emt 0:00:00]} d5 {[%emt 0:00:00]} 2. Nf3 {[%emt 0:00:00]} Nf6 {[%emt 0:00:05]} 3. c4 {[%emt 0:00:13]} e6 {[%emt 0:00:19]} 4. Nc3 {[%emt 0:00:11]} c6 {[%emt 0:00:23]} 5. cxd5 {[%emt 0:01:12]} exd5 {[%emt 0:00:18]} 6. Qc2 {[%emt 0:00:22]} g6 {[%emt 0:01:44]} 7. Bg5 {[%emt 0:00:10]} Be7 {[%emt 0:01:06]} 8. e3 {[%emt 0:08:48]} Bf5 {[%emt 0:01:30]} 9. Bd3 {[%emt 0:01:54]} Bxd3 {[%emt 0:00:56]} 10. Qxd3 {[%emt 0:00:05]} Nbd7 {[%emt 0:01:18]} 11. O-O {[%emt 0:00:23]} O-O {[%emt 0:02:36]} 12. Qc2 {[%emt 0:01:38]} Re8 {[%emt 0:02:56]} 13. Rab1 {[%emt 0:08:41]} a5 {[%emt 0:07:20]} 14. a3 {[%emt 0:00:25]} b5 {[%emt 0:17:53]} 15. Ne2 {[%emt 0:02:47]} Rc8 {[%emt 0:04:00]} 16. Nf4 {[%emt 0:02:21]} Ne4 {[%emt 0:02:49]} 17. Bxe7 {[%emt 0:00:16]} Qxe7 {[%emt 0:02:05]} 18. Nd3 {[%emt 0:02:41]} f6 {[%emt 0:03:42]} 19. Rfc1 {[%emt 0:03:25]} Kg7 {[%emt 0:05:34]} 20. Nd2 {[%emt 0:02:58]} Nd6 {[%emt 0:03:22]} 21. Nc5 {[%emt 0:03:56]} f5 {[%emt 0:08:20]} 22. Qc3 {[%emt 0:06:05]} a4 {[%emt 0:06:18]} 23. Nd3 {[%emt 0:02:42]} Ne4 {[%emt 0:03:00]} 24. Qc2 {[%emt 0:03:18]} h5 {[%emt 0:02:49]} 25. Nxe4 {[%emt 0:05:40]} fxe4 {[%emt 0:00:15]} 26. Nc5 {[%emt 0:02:37]} Nf6 {[%emt 0:04:52]} 27. Rf1 {[%emt 0:00:47]} Ng4 {[%emt 0:02:03]} 28. h3 {[%emt 0:01:08]} Nh6 {[%emt 0:00:39]} 29. Rbe1 {[%emt 0:07:50]} Nf5 {[%emt 0:04:31]} 30. f3 {[%emt 0:02:43]} exf3 {[%emt 0:02:02]} 31. Rxf3 {[%emt 0:00:06]} Kh7 {[%emt 0:00:49]} 32. Qf2 {[%emt 0:02:46]} Kg8 {[%emt 0:04:07]} 33. Nd3 {[%emt 0:02:12]} Qg5 {[%emt 0:03:23]} 34. Ne5 {[%emt 0:00:24]} Re6 {[%emt 0:00:39]} 35. Nxg6 {[%emt 0:01:28]} Qxg6 {[%emt 0:00:57]} 36. Rxf5 {[%emt 0:00:12]} Kh8 {[%emt 0:00:47]} 37. Qf3 {[%emt 0:01:10]} Qg7 {[%emt 0:00:52]} 38. Rxh5+ {[%emt 0:00:15]} Kg8 {[%emt 0:00:20]} 39. Qf5 {[%emt 0:00:20]} Qf6 {[%emt 0:00:30]} 40. Qg4+ {[%emt 0:00:13]} Kf8 {[%emt 0:00:33]} 41. Rf5 {[%emt 0:30:05]} Rce8 {[%emt 0:30:12]} 42. Rxf6+ {[%emt 0:00:11]} Rxf6 {[%emt 0:00:06]} 43. Rf1 {[%emt 0:00:05]} Rxf1+ {[%emt 0:00:09]} 44. Kxf1 {[%emt 0:00:04]} Ke7 {[%emt 0:00:08]} 45. Qg6 {[%emt 0:00:22]} Rf8+ {[%emt 0:00:06]} 46. Ke2 {[%emt 0:00:05]} Rf6 {[%emt 0:00:04]} 47. Qg7+ {[%emt 0:00:22]} Rf7 {[%emt 0:00:09]} 48. Qg5+ {[%emt 0:00:04]} Rf6 {[%emt 0:00:06]} 49. h4 {[%emt 0:00:04]} Kf7 {[%emt 0:00:04]} 50. h5 {[%emt 0:00:04]} c5 {[%emt 0:00:21]} 51. Qxd5+ {[%emt 0:00:05]} Kg7 {[%emt 0:00:07]} 52. dxc5 {[%emt 0:00:06]} Kh6 {[%emt 0:00:05]} 53. Qd6 {[%emt 0:00:08]} Kg5 {[%emt 0:00:12]} 54. Qxf6+ {[%emt 0:00:14]} Kxf6 {[%emt 0:00:07]} 55. c6 {[%emt 0:00:04]} Kg5 {[%emt 0:00:02]} 56. c7 {[%emt 0:00:05]} Kxh5 {[%emt 0:00:06]} 57. c8=Q {[%emt 0:00:10]} 1-0

[Event "WCCC U10 2019"]
[Site "Weifang"]
[Date "2019.09.01"]
[Round "11.7"]
[White "Lu, Miaoyi"]
[Black "Daakshin, Arun"]
[Result "1-0"]
[ECO "E62"]
[WhiteElo "1950"]
[BlackElo "1628"]
[Annotator "NA RC"]
[PlyCount "138"]
[EventDate "2019.08.21"]
[EventType "swiss"]
[EventCountry "CHN"]
[SourceTitle "playchess.com"]
[Source "ChessBase"]
[SourceQuality "1"]
[TimeControl "40/5400+30:1800+30"]

{[%evp 8,138,21,20,43,29,43,32767,32767,32767,32767,32767,32767,38,54,8,59,39,32,32767,32767,0,32767,4,20,0,0,-15,-22,-28,-25,-58,-48,-48,32767,32767,-81,-69,-78,-115,-86,-103,-90,-91,-68,-75,104,128,109,118,32767,314,291,32767,32767,32767,32767,428,32767,470,564,232,504,579,536,229,254,241,229,250,223,242,360,378,359,407,426,448,483,341,32767,355,32767,345,32767,354,348,341,32767,576,32767,32767,760,32767,32767,32767,32767,32767,32767,32767,32767,32767,32767,32767,32767,32767,32767,32767,32767,32767,32767,32767,1479,32767,5608,32767,32767,32767,32767,10488,32767,32767,29984,32767,32767,29986,32767,32767,29987,32767,32767,32767,29992]} 1. d4 {[%emt 0:00:00]} Nf6 {[%emt 0:00:00]} 2. c4 {[%emt 0:00:00]} g6 {[%emt 0:00:00]} 3. Nf3 {[%emt 0:00:00]} Bg7 {[%emt 0:00:00]} 4. g3 {[%emt 0:00:00]} d6 {[%emt 0:00:00]} 5. Bg2 {[%emt 0:00:00]} O-O {[%emt 0:00:00]} 6. Nc3 {[%emt 0:01:10]} Nc6 {[%emt 0:00:24]} 7. O-O {[%emt 0:00:00]} e5 {[%emt 0:00:07]} 8. dxe5 {[%emt 0:05:07]} dxe5 {[%emt 0:00:05]} 9. Bg5 {[%emt 0:02:35]} Qxd1 {[%emt 0:01:23] E62: King's Indian: Fianchetto: 6...c6 and Panno Variation (6...Nc6) without ...a6} (9... Be6 10. Qa4 Qb8 11. Bxf6 Bxf6 12. Nd2 Bg7 13. Rfd1 Rd8 14. Nb3 Nd4 15. Nc5 c6 16. e3 Bg4 17. exd4 exd4 18. N3e4 Bxd1 19. Rxd1 {1-0 (32) Carlsen,M (2835)-Firouzja,A (2607) St Petersburg 2018}) 10. Rfxd1 {[%emt 0:00:39]} Ne8 {[%emt 0:06:29]} 11. Nd5 {[%emt 0:09:59]} (11. Nd2 $14) 11... f6 {[%emt 0:00:36]} ({Black should try} 11... e4 $11 12. Nd2 f5) 12. Be3 {[%emt 0:02:05]} Be6 {[%emt 0:02:31]} 13. Rd2 $146 {[%emt 0:07:54]} ({Predecessor:} 13. Ne1 Rf7 14. Nd3 Bf8 15. Rac1 Nd8 16. Bc5 Bg4 17. Rc2 {0-1 (65) Arouche,F (2081)-Horvath,M (2059) Bled 2002}) 13... Rf7 {[%emt 0:01:41]} 14. b3 {[%emt 0:05:26]} Bf8 {[%emt 0:01:20]} 15. Rad1 {[%emt 0:07:21]} Nd6 {[%emt 0:01:54]} 16. Ne1 {[%emt 0:05:18]} Nf5 {[%emt 0:03:29]} 17. Nc2 {[%emt 0:03:13]} a5 {[%emt 0:00:59]} 18. a4 {[%emt 0:06:25]} Kg7 {[%emt 0:01:49]} 19. Rd3 {[%emt 0:02:17]} Nxe3 {[%emt 0:02:59]} 20. Ndxe3 {[%emt 0:01:07]} Bc5 {[%emt 0:03:18]} 21. Nd5 {[%emt 0:04:17]} f5 {[%emt 0:01:12]} 22. e3 {[%emt 0:07:03]} Re8 {[%emt 0:01:11]} 23. h4 {[%emt 0:06:53]} h6 {[%emt 0:01:09]} 24. Kh2 {[%emt 0:02:01]} g5 {[%emt 0:00:31]} 25. f4 {[%emt 0:03:40]} Kg6 {[%emt 0:02:04]} 26. R3d2 {[%emt 0:03:39]} Rg7 $2 {[%emt 0:01:58] [#]} (26... Bc8 $17 {keeps the pressure on.}) 27. h5+ $1 {[%emt 0:01:56]} Kf7 {[%emt 0:01:18]} 28. Nxc7 {[%emt 0:00:36]} Re7 {[%emt 0:03:28]} 29. Nxe6 {[%emt 0:01:17]} Kxe6 {[%emt 0:00:08]} 30. Rd5 {[%emt 0:01:12]} Ba7 {[%emt 0:01:10]} 31. Rd6+ {[%emt 0:01:58]} Kf7 {[%emt 0:00:03]} 32. Bd5+ {[%emt 0:01:30]} Ke8 {[%emt 0:00:24]} 33. Rxh6 {[%emt 0:01:52]} gxf4 {[%emt 0:01:24]} 34. gxf4 {[%emt 0:04:06]} (34. Rh8+ $142 Kd7 35. h6) 34... exf4 $2 {[%emt 0:00:14]} (34... Rh7 {might work better.} 35. Rxh7 Rxh7) 35. Rh8+ {[%emt 0:02:00]} Kd7 {[%emt 0:00:04]} 36. Bf3+ {[%emt 0:01:37]} (36. h6 $142 Rg6 37. Bf7+ Rd6 38. Rxd6+ Kxd6 39. Rf8) 36... Kc7 {[%emt 0:00:05]} 37. exf4 {[%emt 0:00:07]} Bf2 {[%emt 0:01:49]} 38. Rf8 {[%emt 0:01:32]} Bg3+ {[%emt 0:04:34]} 39. Kh1 {[%emt 0:00:21]} Rgf7 {[%emt 0:01:53]} (39... Bxf4 $142 40. Rxf5 Rgf7 41. Rxf7 Rxf7 42. Bxc6 bxc6) 40. Rxf7 {[%emt 0:00:19]} Rxf7 {[%emt 0:00:04]} 41. Bxc6 {[%emt 0:17:03]} bxc6 {[%emt 0:00:06]} 42. Nd4 {[%emt 0:00:44]} Rf6 {[%emt 0:00:49]} 43. Ne2 {[%emt 0:01:07]} Bf2 {[%emt 0:00:10]} 44. Kg2 {[%emt 0:00:30]} Bc5 {[%emt 0:00:06]} 45. Ng3 {[%emt 0:01:17]} Bf8 {[%emt 0:00:31]} 46. Kf3 {[%emt 0:02:41]} Kb6 {[%emt 0:00:16]} 47. Re1 {[%emt 0:03:30]} Bd6 {[%emt 0:01:03]} 48. h6 {[%emt 0:00:44]} Rxh6 {[%emt 0:00:12]} 49. Nxf5 {[%emt 0:00:07]} Rf6 {[%emt 0:00:06]} 50. Nxd6 {[%emt 0:00:07]} Rxd6 {[%emt 0:00:04]} 51. Re3 {[%emt 0:00:35]} Kc5 {[%emt 0:00:10]} 52. Kg4 {[%emt 0:01:53]} Kd4 {[%emt 0:00:28]} 53. Re8 {[%emt 0:00:25]} Kc3 {[%emt 0:00:24]} 54. Rb8 {[%emt 0:00:10]} Rd4 {[%emt 0:00:25]} 55. Kg5 {[%emt 0:00:14]} Rd3 {[%emt 0:00:09]} 56. f5 {[%emt 0:00:11]} Rg3+ {[%emt 0:00:05]} 57. Kh6 {[%emt 0:00:19]} Rh3+ {[%emt 0:00:04]} 58. Kg6 {[%emt 0:00:07]} Rg3+ {[%emt 0:00:14]} 59. Kf7 {[%emt 0:00:01]} Kd4 {[%emt 0:01:24]} 60. f6 {[%emt 0:00:14]} Re3 {[%emt 0:00:17]} 61. Kg7 {[%emt 0:00:39]} Rg3+ {[%emt 0:00:06]} 62. Kf8 {[%emt 0:00:02]} Ke5 {[%emt 0:00:08]} 63. f7 {[%emt 0:00:15]} (63. Ke7 $142 Rg4 64. f7 Rg7 65. Ra8 Kd4 66. Rxa5 Kc3 67. Rh5 Kb4 68. a5) 63... Kf6 {[%emt 0:00:18]} 64. Rb6 {[%emt 0:00:08]} Re3 {[%emt 0:00:28]} 65. Rxc6+ {[%emt 0:00:03]} Kf5 {[%emt 0:00:05]} 66. Rb6 {[%emt 0:00:39]} Re2 {[%emt 0:00:22]} 67. c5 {[%emt 0:00:06]} Ke5 {[%emt 0:00:18]} 68. Rg6 {[%emt 0:01:03]} Kd5 {[%emt 0:00:09]} 69. Kg8 {[%emt 0:00:06]} Kd4 {[%emt 0:01:27]} 1-0

[Event "WCCC U10 2019"]
[Site "Weifang"]
[Date "2019.09.01"]
[Round "11.8"]
[White "Wongso, Steve"]
[Black "Han, Johnathan"]
[Result "1-0"]
[ECO "B85"]
[WhiteElo "1765"]
[BlackElo "1579"]
[Annotator "NA RC"]
[PlyCount "117"]
[EventDate "2019.08.21"]
[EventType "swiss"]
[EventCountry "CHN"]
[SourceTitle "playchess.com"]
[Source "ChessBase"]
[SourceQuality "1"]
[TimeControl "40/5400+30:1800+30"]

1. e4 {[%emt 0:00:00]} c5 {[%emt 0:00:00]} 2. Nf3 {[%emt 0:00:00]} d6 {[%emt 0:00:15]} 3. d4 {[%emt 0:00:22]} cxd4 {[%emt 0:00:28]} 4. Nxd4 {[%emt 0:00:07]} Nf6 {[%emt 0:00:04]} 5. Nc3 {[%emt 0:00:06]} a6 {[%emt 0:00:04]} 6. f4 {[%emt 0:00:04]} e6 {[%emt 0:00:12]} 7. a4 {[%emt 0:00:03]} Be7 {[%emt 0:00:35]} 8. Be2 {[%emt 0:00:03]} Qc7 {[%emt 0:00:41]} 9. O-O {[%emt 0:00:02]} Nc6 {[%emt 0:01:30]} 10. Be3 {[%emt 0:00:01]} O-O {[%emt 0:00:22]} 11. Kh1 {[%emt 0:00:04]} Bd7 {[%emt 0:01:27]} 12. Nb3 {[%emt 0:00:08]} b6 {[%emt 0:00:13]} 13. g4 {[%emt 0:00:06]} Bc8 {[%emt 0:07:30]} 14. Bf3 {[%emt 0:00:09]} Bb7 {[%emt 0:00:16]} 15. g5 {[%emt 0:00:03]} Nd7 {[%emt 0:00:09]} 16. Bg2 {[%emt 0:00:59]} Na5 {[%emt 0:10:29]} 17. Nxa5 {[%emt 0:00:49]} bxa5 {[%emt 0:00:06]} 18. Rf3 {[%emt 0:02:27]} Rab8 {[%emt 0:01:21]} 19. Rh3 {[%emt 0:00:07]} Rfc8 {[%emt 0:00:08]} 20. Qg4 {[%emt 0:10:09]} Nf8 {[%emt 0:10:35]} 21. Rf1 {[%emt 0:08:56]} f5 {[%emt 0:13:47]} 22. exf5 {[%emt 0:04:43]} exf5 {[%emt 0:01:39]} 23. Qxf5 {[%emt 0:01:37]} Bxg2+ {[%emt 0:00:08]} 24. Kxg2 {[%emt 0:00:03]} Rxb2 {[%emt 0:00:17]} 25. Nd5 {[%emt 0:27:48]} Rxc2+ {[%emt 0:10:16]} 26. Rf2 {[%emt 0:00:17]} Rxf2+ {[%emt 0:04:57]} 27. Bxf2 {[%emt 0:00:16]} Qc6 {[%emt 0:01:50]} 28. Rc3 {[%emt 0:01:03]} Qxc3 {[%emt 0:00:47]} 29. Nxe7+ {[%emt 0:00:23]} Kh8 {[%emt 0:00:05]} 30. Qxc8 {[%emt 0:00:59]} Qxc8 {[%emt 0:00:24]} 31. Nxc8 {[%emt 0:00:04]} Ne6 {[%emt 0:00:16]} 32. f5 {[%emt 0:00:37]} Nxg5 {[%emt 0:00:08]} 33. Nxd6 {[%emt 0:00:05]} h6 {[%emt 0:00:41]} 34. Bc5 {[%emt 0:00:14]} Kg8 {[%emt 0:00:15]} 35. h4 {[%emt 0:00:26]} Nh7 {[%emt 0:00:01]} 36. Ne4 {[%emt 0:00:10]} Kf7 {[%emt 0:00:15]} 37. h5 {[%emt 0:00:18]} Nf6 {[%emt 0:01:06]} 38. Ng3 {[%emt 0:01:38]} Nd5 {[%emt 0:00:32]} 39. Bd4 {[%emt 0:00:07]} Ne7 {[%emt 0:01:04]} 40. Kf3 {[%emt 0:00:13]} Nc6 {[%emt 0:00:11]} 41. Bc3 {[%emt 0:30:07]} Nb8 {[%emt 0:30:48]} 42. Bxa5 {[%emt 0:00:10]} Nd7 {[%emt 0:00:05]} 43. Bc3 {[%emt 0:00:14]} a5 {[%emt 0:01:42]} 44. Ne4 {[%emt 0:00:30]} Nb6 {[%emt 0:00:07]} 45. Nc5 {[%emt 0:00:31]} Nc4 {[%emt 0:00:17]} 46. Kf4 {[%emt 0:00:36]} Kg8 {[%emt 0:00:24]} 47. Ke4 {[%emt 0:00:05]} Nd6+ {[%emt 0:00:10]} 48. Ke5 {[%emt 0:00:07]} Nc4+ {[%emt 0:00:09]} 49. Ke6 {[%emt 0:00:03]} Kf8 {[%emt 0:00:16]} 50. f6 {[%emt 0:00:47]} gxf6 {[%emt 0:00:07]} 51. Kxf6 {[%emt 0:00:03]} Nd6 {[%emt 0:00:51]} 52. Bxa5 {[%emt 0:00:11]} Nf7 {[%emt 0:00:18]} 53. Bb4 {[%emt 0:00:16]} Kg8 {[%emt 0:00:06]} 54. Ne6 {[%emt 0:00:13]} Nh8 {[%emt 0:00:50]} 55. a5 {[%emt 0:00:08]} Kh7 {[%emt 0:00:08]} 56. a6 {[%emt 0:00:04]} Kg8 {[%emt 0:00:09]} 57. a7 {[%emt 0:00:02]} Kh7 {[%emt 0:00:09]} 58. a8=Q {[%emt 0:00:14]} Nf7 {[%emt 0:00:13]} 59. Qf8 {[%emt 0:00:50]} 1-0